bitfinex-derivatives/quotes_SOLF0:USTF0_20240913
["timestamp","ask_amount","ask_price","bid_price","bid_amount"]
[1726254185990,3.7109856,137.98,137.94,11.14]
[1726254186791,3.6232,137.95,137.93,11.14]
[1726254188095,3.623,137.96,137.93,14.7637]
[1726254188491,3.623,137.96,137.95,11.14]
[1726254188694,3.6227,137.97,137.95,11.14]
[1726254189489,3.6229,137.96,137.95,11.14]
[1726254190003,3.6227,137.97,137.95,11.14]
[1726254190699,3.6224,137.98,137.95,11.14]
[1726254191396,3.6227,137.97,137.95,11.14]
[1726254191893,3.6227,137.97,137.94,3.6233]
[1726254192098,2.8655,138.0,137.96,11.14]
[1726254192295,2.8655,138.0,137.92,3.6182]
[1726254192296,2.8655,138.0,137.99,11.14]
[1726254192994,3.6222,137.99,137.96,3.6229]
[1726254193201,3.6222,137.99,137.98,11.14]
[1726254196403,3.6222,137.99,137.97,11.14]
[1726254196994,14.0055,138.0,137.95,11.14]
[1726254197602,3.6229,137.97,137.95,11.14]
[1726254198290,11.14,137.98,137.86,10.0942]
[1726254198494,11.14,137.98,137.93,11.14]
[1726254198892,3.6234,137.95,137.93,11.14]
[1726254200098,5.4699,137.99,137.94,11.14]
[1726254200303,5.4699,137.99,137.97,11.14]
[1726254201410,3.6224,137.98,137.97,11.14]
[1726254202197,11.14,137.98,137.9,3.6182]
[1726254202397,11.14,137.98,137.94,11.14]
[1726254202896,3.6231,137.96,137.95,11.14]
[1726254203510,3.6228,137.97,137.95,11.14]
[1726254204104,3.6229,137.96,137.95,11.14]
[1726254206121,5.4699,137.99,137.95,11.14]
[1726254206410,5.4699,137.99,137.96,11.14]
[1726254206816,3.6227,137.97,137.96,11.14]
[1726254209418,5.4699,137.99,137.95,11.14]
[1726254209419,3.623,137.96,137.95,11.14]
[1726254210612,3.6234,137.95,137.92,3.6238]
[1726254210821,11.14,137.98,137.94,11.14]
[1726254211522,3.6232,137.95,137.94,11.14]
[1726254214310,3.6237,137.93,137.9,3.6244]
[1726254214621,3.6237,137.93,137.92,11.14]
[1726254214827,11.14,137.96,137.92,11.14]
[1726254215016,3.6236,137.94,137.92,11.14]
[1726254216622,3.6236,137.94,137.93,11.14]
[1726254216817,3.6233,137.95,137.93,11.14]
[1726254218121,3.6234,137.94,137.93,11.14]
[1726254220026,14.79724998,137.98,137.87,154.08270054]
[1726254220027,3.6237,137.93,137.92,11.14]
[1726254220327,11.14,137.97,137.92,11.14]
[1726254220826,3.6237,137.93,137.92,11.14]
[1726254221928,3.6235,137.94,137.92,11.14]
[1726254223325,3.6237,137.93,137.92,11.14]
[1726254225531,14.83720034,137.97,137.92,11.14]
[1726254226523,3.6236,137.94,137.93,11.14]
[1726254227540,11.14,137.98,137.93,11.14]
[1726254227831,14.74521389,137.98,137.93,11.14]
[1726254228220,3.6232,137.95,137.93,11.14]
[1726254229934,5.4699,137.99,137.94,11.14]
[1726254230143,5.4699,137.99,137.96,11.14]
[1726254230331,2.7998,137.99,137.96,11.14]
[1726254230635,3.6226,137.98,137.96,11.14]
[1726254231424,3.6227,137.97,137.96,11.14]
[1726254231724,3.6227,137.97,137.95,11.14]
[1726254232127,3.6229,137.96,137.95,11.14]
[1726254233124,2.7998,137.99,137.95,11.14]
[1726254233325,2.8655,138.0,137.98,11.14]
[1726254233525,3.6222,137.99,137.98,11.14]
[1726254238233,3.6224,137.98,137.97,11.14]
[1726254238539,11.14,137.99,137.95,11.14]
[1726254238840,3.6229,137.97,137.95,11.14]
[1726254240434,3.6229,137.96,137.95,11.14]
[1726254242041,2.8655,138.0,137.95,11.14]
[1726254242236,2.8655,138.0,137.91,6.3706]
[1726254242237,2.8655,138.0,137.97,11.14]
[1726254242436,2.8655,138.0,137.99,11.14]
[1726254242646,6.4874,138.0,137.99,11.14]
[1726254245244,2.8655,138.0,137.99,11.14]
[1726254246240,6.4874,138.0,137.99,11.14]
[1726254246443,2.7696,138.03,137.99,11.14]
[1726254246638,13.9096,138.03,137.99,11.14]
[1726254246943,3.6218,138.01,138.0,11.14]
[1726254247342,6.3909,138.03,138.0,14.7618]
[1726254247547,226.0,138.13,138.02,11.14]
[1726254247751,11.14,138.07,138.02,11.14]
[1726254248050,3.6211,138.03,138.01,11.14]
[1726254248344,11.14,138.05,138.01,11.14]
[1726254248549,3.621,138.04,138.01,14.7615]
[1726254248756,11.14,138.05,138.01,11.14]
[1726254249642,3.6209,138.04,138.01,11.14]
[1726254250645,11.14,138.05,138.01,11.14]
[1726254250848,11.14,138.04,138.0,11.14]
[1726254251046,3.6216,138.02,138.0,11.14]
[1726254251256,11.14,138.02,137.99,11.14]
[1726254252158,3.6219,138.0,137.99,11.14]
[1726254258665,3.6214,138.02,137.99,11.14]
[1726254258863,5.2487,138.04,138.01,11.14]
[1726254259262,3.6212,138.03,138.01,11.14]
[1726254259665,5.2487,138.04,138.01,11.14]
[1726254259966,355.35007829,138.14,138.03,11.14]
[1726254259967,333.59007829,138.14,138.03,11.14]
[1726254260164,11.14,138.08,137.97,2.7616]
[1726254260465,3.6205,138.06,138.04,11.14]
[1726254260673,14.83450478,138.08,138.04,11.14]
[1726254260867,11.14,138.07,138.03,11.14]
[1726254261164,13.7517,138.07,138.03,11.14]
[1726254261870,3.6209,138.04,138.03,11.14]
[1726254263271,2.6117,138.07,138.03,11.14]
[1726254263467,2.6117,138.07,138.04,11.14]
[1726254264669,3.6205,138.06,138.04,11.14]
[1726254265374,3.6206,138.05,138.04,11.14]
[1726254265574,2.6117,138.07,138.04,11.14]
[1726254265970,3.6205,138.06,138.04,11.14]
[1726254266675,2.6117,138.07,138.04,11.14]
[1726254266676,3.6206,138.05,138.04,11.14]
[1726254269577,3.6204,138.06,138.04,11.14]
[1726254269779,3.6204,138.06,138.05,11.14]
[1726254270076,3.6204,138.06,138.04,11.14]
[1726254270880,3.6204,138.06,138.04,14.7608]
[1726254271068,3.6204,138.06,138.05,11.14]
[1726254271269,6.2319,138.07,138.05,11.14]
[1726254271971,3.6203,138.06,138.05,11.14]
[1726254272882,3.6203,138.06,138.0,3.6182]
[1726254272883,3.6203,138.06,138.04,11.14]
[1726254279890,3.6203,138.06,138.04,14.7608]
[1726254280779,3.6203,138.06,138.04,11.14]
[1726254283491,17.40971659,138.1,138.05,11.14]
[1726254284190,3.6203,138.06,138.05,11.14]
[1726254284391,3.6203,138.06,138.04,11.14]
[1726254289892,3.6206,138.05,138.04,11.14]
[1726254290595,11.14,138.08,138.04,14.7608]
[1726254291587,3.6203,138.06,138.04,11.14]
[1726254292786,3.6202,138.07,138.05,11.14]
[1726254292995,6.26971659,138.1,138.06,11.14]
[1726254293197,1.08225011,138.09,138.06,11.14]
[1726254293781,3.62,138.07,138.06,11.14]
[1726254294481,3.62,138.07,138.05,11.14]
[1726254298296,3.6203,138.06,138.05,11.14]
[1726254298890,3.6201,138.07,138.05,11.14]
[1726254300492,3.6203,138.06,138.05,11.14]
[1726254303202,3.6202,138.07,138.05,11.14]
[1726254303497,2.6874,138.1,138.06,11.14]
[1726254303694,3.6196,138.09,138.06,11.14]
[1726254304102,2.6874,138.1,138.06,11.14]
[1726254304401,3.62,138.08,138.06,11.14]
[1726254304903,3.6204,138.06,138.01,3.62117741]
[1726254305104,3.6204,138.06,138.04,11.14]
[1726254305888,3.6202,138.07,138.04,11.14]
[1726254306093,3.6202,138.07,138.05,11.14]
[1726254307602,3.6203,138.06,138.05,11.14]
[1726254308403,3.6201,138.07,138.05,11.14]
[1726254308606,11.14,138.09,138.05,11.14]
[1726254308795,3.6203,138.06,138.05,11.14]
[1726254309106,3.6203,138.06,138.03,11.14]
[1726254309808,3.6206,138.05,138.02,3.6212]
[1726254310003,11.14,138.06,138.0,3.6182]
[1726254310306,11.14,138.06,138.0,11.14]
[1726254310811,3.6212,138.03,138.01,11.14]
[1726254311593,11.14,138.06,138.01,11.14]
[1726254311797,3.6213,138.02,138.01,11.14]
[1726254312405,13.63977647,138.12,137.9,150.42487595]
[1726254312406,11.86269014,138.05,137.9,150.42487595]
[1726254312605,8.2179,138.05,137.99,11.14]
[1726254312906,3.621,138.04,138.02,11.14]
[1726254313499,19.3579,138.05,138.01,11.14]
[1726254314810,3.6213,138.03,138.01,11.14]
[1726254315609,11.8387,138.05,138.02,11.14]
[1726254315804,8.2179,138.05,138.02,11.14]
[1726254316010,19.3579,138.05,138.01,11.14]
[1726254316310,3.621,138.04,138.01,11.14]
[1726254316707,19.3579,138.05,138.01,11.14]
[1726254316900,3.6209,138.04,138.01,11.14]
[1726254317104,19.3579,138.05,138.01,11.14]
[1726254317298,8.2179,138.05,138.02,11.14]
[1726254317501,11.8385,138.05,138.02,11.14]
[1726254318902,3.53967647,138.12,138.03,11.14]
[1726254319101,11.14,138.09,138.04,11.14]
[1726254319305,3.6203,138.06,138.04,11.14]
[1726254319512,11.14,138.09,138.04,11.14]
[1726254319707,3.6199,138.08,138.05,11.14]
[1726254320607,3.6196,138.09,138.05,11.14]
[1726254320812,3.6196,138.09,138.05,14.7606]
[1726254321015,11.14,138.1,138.05,14.7606]
[1726254321912,3.6198,138.08,138.05,14.7606]
[1726254322111,8.1876,138.11,138.07,11.14]
[1726254322314,2.7757,138.11,138.09,11.14]
[1726254322608,3.6192,138.11,138.09,11.14]
[1726254322810,11.14,138.13,138.09,11.14]
[1726254323611,3.6192,138.1,138.09,11.14]
[1726254324609,17.62141673,138.12,138.04,3.6182]
[1726254324806,13.9247,138.12,138.06,11.14]
[1726254325008,17.48232804,138.12,138.06,11.14]
[1726254325207,11.14,138.11,138.06,11.14]
[1726254325919,3.6197,138.09,138.06,11.14]
[1726254326418,11.14,138.11,138.05,11.14]
[1726254326918,3.62,138.08,138.05,11.14]
[1726254327620,3.6201,138.07,138.05,11.14]
[1726254327918,11.14,138.08,138.04,11.14]
[1726254328422,11.14,138.08,138.05,11.14]
[1726254328627,11.14,138.09,138.05,11.14]
[1726254328828,3.6203,138.06,138.05,11.14]
[1726254331213,3.6203,138.06,138.02,3.6212]
[1726254331214,3.6208,138.04,137.98,2.8189]
[1726254331409,3.6208,138.04,138.02,11.14]
[1726254331918,3.6211,138.03,138.02,11.14]
[1726254333117,3.6215,138.02,137.98,6.4371]
[1726254333417,3.6215,138.02,138.01,11.14]
[1726254335123,3.6216,138.01,138.0,11.14]
[1726254335324,13.8821,138.04,138.0,11.14]
[1726254335509,13.8821,138.04,138.01,11.14]
[1726254335714,2.7421,138.04,138.01,11.14]
[1726254335916,3.6211,138.03,138.02,11.14]
[1726254337427,3.6216,138.02,138.0,11.14]
[1726254337726,2.7421,138.04,138.0,11.14]
[1726254338926,3.6215,138.02,138.0,11.14]
[1726254341134,13.8821,138.04,137.97,7.2407]
[1726254341431,13.8821,138.04,137.99,11.14]
[1726254341614,16.7625,138.04,137.99,11.14]
[1726254341818,19.5478,138.04,137.99,11.14]
[1726254342630,3.622,138.0,137.99,11.14]
[1726254343227,3.6224,137.98,137.95,3.6231]
[1726254343423,11.14,138.0,137.96,11.14]
[1726254343623,11.14,137.99,137.95,11.14]
[1726254343823,3.6232,137.95,137.92,3.6239]
[1726254344132,2.8811,137.98,137.94,11.14]
[1726254344319,2.8811,137.98,137.96,11.14]
[1726254344523,3.6229,137.97,137.96,11.14]
[1726254345933,3.6232,137.96,137.93,3.6235]
[1726254346130,3.6232,137.96,137.94,11.14]
[1726254346326,3.6232,137.96,137.95,11.14]
[1726254348038,3.6232,137.96,137.94,11.14]
[1726254349624,3.6232,137.95,137.94,11.14]
[1726254349929,11.14,137.95,137.91,11.14]
[1726254350131,11.14,137.95,137.92,11.14]
[1726254350336,11.14,137.95,137.85,6.01553597]
[1726254350630,11.14,137.95,137.91,11.14]
[1726254351635,3.6237,137.94,137.91,11.14]
[1726254352524,3.6237,137.94,137.91,14.7642]
[1726254352828,2.8811,137.98,137.93,11.14]
[1726254353027,2.8811,137.98,137.96,11.14]
[1726254353731,3.6227,137.97,137.96,11.14]
[1726254356038,11.14,137.97,137.87,7.253]
[1726254356234,11.14,137.97,137.92,11.14]
[1726254356833,11.14,137.97,137.93,11.14]
[1726254357239,3.623,137.96,137.93,11.14]
[1726254357737,3.6232,137.95,137.93,11.14]
[1726254358435,3.6234,137.94,137.92,11.14]
[1726254358635,11.14,137.96,137.92,11.14]
[1726254359741,3.6235,137.94,137.92,11.14]
[1726254360737,3.6233,137.95,137.92,14.764]
[1726254361825,11.14,137.97,137.92,11.14]
[1726254362331,11.14,137.96,137.92,11.14]
[1726254362530,3.6234,137.95,137.92,11.14]
[1726254363136,3.6235,137.94,137.92,11.14]
[1726254363337,11.14,137.93,137.86,2.6426]
[1726254363639,11.14,137.92,137.87,11.14]
[1726254364342,3.6244,137.91,137.87,11.14]
[1726254364636,11.14,137.92,137.87,11.14]
[1726254365443,11.14,137.92,137.88,11.14]
[1726254366037,3.6247,137.9,137.88,11.14]
[1726254366637,11.14,137.89,137.76,233.253]
[1726254366838,11.14,137.89,137.74,7.2573]
[1726254366839,11.14,137.88,137.84,11.14]
[1726254367029,11.14,137.89,137.84,11.14]
[1726254367434,3.6253,137.87,137.84,14.7659]
[1726254368231,3.6251,137.88,137.85,14.7657]
[1726254368833,11.14,137.9,137.86,14.7655]
[1726254369033,19.3485,137.93,137.89,11.14]
[1726254369437,19.3485,137.93,137.87,11.14]
[1726254369438,11.14,137.92,137.87,11.14]
[1726254369645,11.14,137.9,137.86,11.14]
[1726254369843,8.2085,137.93,137.85,11.14]
[1726254369844,11.14,137.89,137.85,11.14]
[1726254370037,11.14,137.89,137.86,3.6255]
[1726254370236,11.14,137.89,137.85,11.14]
[1726254370433,11.14,137.89,137.84,3.6258]
[1726254370645,11.14,137.89,137.85,11.14]
[1726254372547,11.14,137.88,137.85,11.14]
[1726254372845,11.14,137.91,137.87,11.14]
[1726254373745,11.14,137.91,137.87,14.7653]
[1726254374137,11.14,137.89,137.84,11.14]
[1726254374342,11.14,137.9,137.86,11.14]
[1726254374935,11.14,137.87,137.83,3.6182]
[1726254375140,11.14,137.87,137.82,11.14]
[1726254375341,11.14,137.86,137.82,11.14]
[1726254375540,11.14,137.86,137.83,3.6262]
[1726254375946,11.14,137.84,137.8,3.6182]
[1726254376152,11.14,137.84,137.78,3.6182]
[1726254376343,11.14,137.83,137.79,11.14]
[1726254376750,11.14,137.85,137.82,3.6266]
[1726254376942,11.14,137.85,137.81,11.14]
[1726254377142,2.8126,137.86,137.83,11.14]
[1726254378349,2.8126,137.86,137.83,14.7663]
[1726254379646,13.9526,137.86,137.83,3.6263]
[1726254380759,13.9526,137.86,137.82,3.6265]
[1726254380955,11.14,137.84,137.79,3.6182]
[1726254381146,11.14,137.84,137.8,11.14]
[1726254381351,11.14,137.84,137.81,3.6267]
[1726254381550,11.14,137.85,137.81,14.7667]
[1726254381751,13.9526,137.86,137.82,14.7664]
[1726254381947,2.8126,137.86,137.84,11.14]
[1726254382152,11.14,137.88,137.84,11.14]
[1726254382360,11.14,137.88,137.85,11.14]
[1726254382545,11.14,137.88,137.84,14.7659]
[1726254382864,11.14,137.87,137.84,3.6259]
[1726254383561,11.14,137.87,137.83,14.7662]
[1726254383853,11.14,137.87,137.83,11.14]
[1726254384050,17.41,137.9,137.81,21.0282]
[1726254385853,17.41,137.9,137.84,3.626]
[1726254386052,17.41,137.9,137.81,21.0282]
[1726254386457,17.41,137.88,137.8,3.6182]
[1726254386653,2.7886,137.87,137.79,23.8725]
[1726254386854,17.41,137.86,137.81,3.6267]
[1726254387054,22.846,137.86,137.81,3.6267]
[1726254388466,22.846,137.86,137.8,3.6271]
[1726254390755,22.846,137.86,137.81,3.6268]
[1726254391065,5.436,137.86,137.81,3.6268]
[1726254394376,5.436,137.86,137.79,17.41]
[1726254394566,2.7886,137.87,137.81,17.41]
[1726254395264,2.7886,137.87,137.81,21.0282]
[1726254396267,17.41,137.9,137.83,17.41]
[1726254396465,17.41,137.9,137.83,21.0282]
[1726254396971,17.41,137.9,137.85,3.6258]
[1726254397559,3.6249,137.89,137.84,3.6259]
[1726254397761,17.41,137.9,137.83,21.0282]
[1726254398867,17.41,137.9,137.85,3.6258]
[1726254398868,21.0346,137.9,137.85,3.6258]
[1726254399069,21.0346,137.9,137.83,21.0282]
[1726254399263,21.0346,137.9,137.83,17.41]
[1726254400765,21.0346,137.9,137.85,3.6258]
[1726254401072,3.6248,137.89,137.85,3.6258]
[1726254401563,3.6248,137.89,137.84,3.626]
[1726254402765,3.6248,137.89,137.85,3.6258]
[1726254404174,11.14,137.86,137.81,11.14]
[1726254404565,11.14,137.86,137.82,3.6265]
[1726254405269,14.7656,137.86,137.82,3.6265]
[1726254405571,11.14,137.84,137.82,3.6265]
[1726254405968,11.14,137.83,137.81,3.6268]
[1726254407571,11.14,137.83,137.8,3.627]
[1726254408079,21.0461,137.84,137.8,3.627]
[1726254408268,21.0461,137.84,137.81,3.6269]
[1726254408469,17.42,137.84,137.81,3.6269]
[1726254408980,6.4161,137.85,137.82,3.6266]
[1726254408981,2.7902,137.85,137.82,3.6266]
[1726254409181,2.7902,137.85,137.78,17.42]
[1726254409881,2.7902,137.85,137.82,3.6265]
[1726254410869,6.4161,137.85,137.81,3.6268]
[1726254411574,6.4161,137.85,137.82,3.6266]
[1726254412074,6.4161,137.85,137.78,21.0382]
[1726254412276,6.4161,137.85,137.82,3.6266]
[1726254418683,3.6254,137.87,137.78,21.0382]
[1726254419088,17.42,137.88,137.78,21.0382]
[1726254419279,2.1094,137.87,137.78,21.0382]
[1726254419677,17.42,137.86,137.78,21.0382]
[1726254420884,17.42,137.86,137.78,17.42]
[1726254420885,3.6258,137.85,137.78,17.42]
[1726254421095,17.42,137.84,137.77,3.6182]
[1726254421283,17.42,137.82,137.79,3.6274]
[1726254421590,17.42,137.82,137.75,3.6182]
[1726254421788,19.5294,137.82,137.74,23.81963]
[1726254421976,19.5294,137.82,137.75,3.71621036]
[1726254422391,19.5294,137.82,137.79,3.6272]
[1726254422582,17.42,137.8,137.75,7.30642036]
[1726254422984,17.42,137.8,137.78,3.6274]
[1726254423285,17.42,137.8,137.75,7.30642036]
[1726254424592,17.42,137.8,137.75,3.71621036]
[1726254426293,23.156,137.82,137.75,3.71621036]
[1726254426494,19.5294,137.82,137.75,3.71621036]
[1726254426694,19.5294,137.82,137.78,17.42]
[1726254426695,2.1094,137.82,137.78,17.42]
[1726254426993,4.0345,137.87,137.79,17.42]
[1726254427500,9.59153262,137.87,137.79,21.01021]
[1726254427793,6.0446,137.87,137.79,21.01021]
[1726254428197,11.14,137.86,137.81,11.14]
[1726254428391,14.7656,137.86,137.82,3.6264]
[1726254429394,3.6258,137.85,137.81,11.14]
[1726254429587,11.14,137.86,137.81,11.14]
[1726254430688,6.0446,137.87,137.86,3.6255]
[1726254430689,2.0101,137.87,137.86,3.6255]
[1726254431389,2.0101,137.87,137.85,3.6257]
[1726254431797,3.6243,137.91,137.85,11.14]
[1726254432099,11.14,137.9,137.86,3.6254]
[1726254432495,11.14,137.89,137.86,3.6254]
[1726254432699,11.14,137.87,137.77,8.6446]
[1726254432995,11.14,137.86,137.82,11.14]
[1726254433196,11.14,137.86,137.84,3.626]
[1726254433699,2.1009,137.92,137.85,3.6256]
[1726254433892,11.14,137.88,137.84,11.14]
[1726254434898,11.14,137.88,137.86,3.6254]
[1726254435688,11.0,137.85,137.77,144.76343342]
[1726254435889,7.2474,137.94,137.7,1.3916]
[1726254436092,11.14,137.8,137.7,4.98312]
[1726254436295,11.14,137.78,137.75,3.6282]
[1726254436500,11.14,137.78,137.74,11.14]
[1726254436696,11.14,137.78,137.74,14.73139]
[1726254437005,11.14,137.85,137.77,11.14]
[1726254437206,11.14,137.85,137.79,11.14]
[1726254437703,11.14,137.85,137.81,3.6267]
[1726254437902,11.14,137.85,137.79,14.73139]
[1726254438102,17.41,137.87,137.79,3.59139]
[1726254438993,21.0353,137.87,137.82,3.6264]
[1726254439603,17.41,137.87,137.79,3.59139]
[1726254440893,3.6259,137.85,137.8,3.6271]
[1726254441205,17.41,137.84,137.76,1.8566]
[1726254441394,3.6265,137.83,137.76,5.44851]
[1726254441799,3.6265,137.83,137.76,5.44825]
[1726254441998,3.6265,137.83,137.78,3.6274]
[1726254442191,1.7515,137.86,137.76,5.44825]
[1726254442703,19.1615,137.86,137.76,5.44825]
[1726254442903,3.6258,137.85,137.76,5.44825]
[1726254443300,3.6258,137.85,137.8,3.627]
[1726254443602,3.6261,137.84,137.8,3.627]
[1726254444200,3.6261,137.84,137.79,7.21895]
[1726254445105,3.6261,137.84,137.8,3.6271]
[1726254445809,3.6264,137.83,137.79,7.21905]
[1726254445994,3.6264,137.83,137.79,3.6274]
[1726254446702,3.6267,137.82,137.78,3.6275]
[1726254446898,17.41,137.83,137.76,5.47939]
[1726254447099,3.6259,137.85,137.81,3.6267]
[1726254448506,3.6261,137.84,137.81,3.6267]
[1726254452615,5.3771,137.86,137.83,3.6262]
[1726254452808,1.7515,137.86,137.79,3.591]
[1726254453607,3.6259,137.85,137.82,3.6265]
[1726254454316,17.41,137.84,137.78,3.591]
[1726254454914,21.0362,137.84,137.78,3.591]
[1726254455519,21.0362,137.84,137.8,3.627]
[1726254455726,3.6265,137.83,137.78,3.591]
[1726254456010,3.6265,137.83,137.79,3.6273]
[1726254457907,17.41,137.84,137.78,3.6276]
[1726254458113,17.41,137.82,137.75,3.62331]
[1726254458316,17.41,137.82,137.75,7.20564536]
[1726254459017,3.627,137.81,137.78,3.6276]
[1726254460604,3.6272,137.8,137.76,3.628]
[1726254465519,19.3306,137.81,137.74,3.62331]
[1726254465725,1.9206,137.81,137.74,21.03331]
[1726254466115,3.6095,137.83,137.8,14.767]
[1726254466426,3.6095,137.83,137.8,11.14]
[1726254466613,11.14,137.84,137.8,11.14]
[1726254467720,14.7661,137.84,137.8,14.767]
[1726254468110,3.6261,137.84,137.8,3.627]
[1726254471227,3.6265,137.83,137.78,3.62331]
[1726254471818,3.6265,137.83,137.77,3.62331]
[1726254472427,3.6265,137.83,137.79,3.6274]
[1726254473828,3.6267,137.82,137.78,3.6275]
[1726254474627,3.6269,137.81,137.77,3.6278]
[1726254474928,5.2555,137.81,137.77,3.6278]
[1726254475317,3.6274,137.79,137.75,7.21956]
[1726254475531,19.0386,137.81,137.74,3.59126]
[1726254475723,17.41,137.79,137.71,5.37166]
[1726254475923,3.6279,137.78,137.73,3.6288]
[1726254476437,21.0375,137.79,137.74,3.6285]
[1726254476623,17.41,137.79,137.74,3.6285]
[1726254477834,3.6277,137.78,137.74,3.6285]
[1726254483734,3.6281,137.77,137.73,3.6288]
[1726254484847,19.0386,137.81,137.72,17.41]
[1726254485031,1.6286,137.81,137.72,17.41]
[1726254485349,19.0386,137.81,137.72,17.41]
[1726254485544,3.6275,137.79,137.75,3.6283]
[1726254486347,3.6275,137.79,137.76,3.6281]
[1726254487244,3.6272,137.8,137.77,3.6278]
[1726254487834,3.6272,137.8,137.76,3.6281]
[1726254488140,17.41,137.8,137.73,3.59126]
[1726254488343,1.6286,137.81,137.71,21.03273333]
[1726254488545,17.41,137.79,137.74,3.6285]
[1726254489348,3.6278,137.78,137.74,3.6285]
[1726254490155,11.16,137.77,137.74,3.6285]
[1726254491144,14.788,137.77,137.74,3.6285]
[1726254491342,11.16,137.76,137.73,3.6288]
[1726254492852,11.16,137.75,137.72,3.6291]
[1726254494141,14.7885,137.75,137.72,3.6291]
[1726254494644,11.16,137.73,137.7,150.61597796]
[1726254495149,11.16,137.72,137.7,150.61597796]
[1726254496353,11.16,137.72,137.69,3.6299]
[1726254497238,14.7893,137.72,137.69,3.6299]
[1726254497752,14.7893,137.72,137.68,3.6301]
[1726254501457,4.7996,137.74,137.69,11.16]
[1726254501753,15.9596,137.74,137.69,11.16]
[1726254501951,11.16,137.73,137.68,3.59164]
[1726254502156,11.16,137.73,137.68,11.16]
[1726254502653,11.16,137.73,137.68,14.75164]
[1726254503040,11.16,137.73,137.7,3.6296]
[1726254507558,14.789,137.73,137.7,3.6296]
[1726254514166,19.5884,137.74,137.71,3.6294]
[1726254514572,15.9596,137.74,137.7,11.16]
[1726254515758,3.629,137.73,137.7,14.7897]
[1726254515957,11.16,137.73,137.68,7.15915038]
[1726254516163,11.16,137.71,137.65,11.16]
[1726254516363,14.7896,137.71,137.67,3.6303]
[1726254516570,11.16,137.67,137.63,3.59164]
[1726254516864,11.16,137.68,137.63,14.75164]
[1726254517159,11.16,137.66,137.63,3.59164]
[1726254517366,11.16,137.66,137.62,3.59164]
[1726254517766,11.16,137.66,137.63,3.6315]
[1726254520469,14.7908,137.66,137.63,3.6315]
[1726254521063,11.16,137.66,137.63,3.6315]
[1726254521268,11.16,137.66,137.62,7.22344]
[1726254521972,14.7908,137.66,137.62,7.22344]
[1726254522573,14.7908,137.66,137.63,3.6316]
[1726254523262,8.38537441,137.74,137.61,3.632]
[1726254523263,14.7913,137.65,137.61,3.632]
[1726254523575,11.16,137.64,137.61,3.632]
[1726254524172,14.7915,137.64,137.6,7.22404]
[1726254524373,14.7915,137.64,137.6,3.59164]